Cogmind - Beta 12 @@@ ROGUE MODE // 2023.03.12 @ 01:35:15 // Winter2019/RPGLIKE Player: Wayland Result: Destroyed by L-31 Rogue with Katana Performance ------------- Evolutions (2) 1000 Regions Visited (6) 1200 Robots Destroyed (23) 115 Value Destroyed (804) 804 Prototype IDs (5) 100 Alien Tech Used (0) 0 Bonus (500) 500 TOTAL SCORE: 3719 Bonus ------- Pacifist 200 Aligned with FarCom 300 Cogmind --------- Core Integrity 0/750 Matter 300/300 Energy 97/100 System Corruption 0% Temperature Cool (0) Movement Rolling (90) Location -8/Materials Parts ------- > --- POWER (1) -------- (None) > --- PROPULSION (2) --- Wheel Compact Wheel > --- UTILITY (3) ------ Structural Scanner Improved Weapon Shielding System Shield > --- WEAPON (2) ------- Powered Hammer Scythe > --- INVENTORY (2) ---- Protomatter-32 Katana Peak State ------------ > --- POWER ------------ Light Angular Momentum Engine > --- PROPULSION ------- Wheel Compact Wheel > --- UTILITY ---------- Advanced ECM Suite Improved Propulsion Shielding System Shield > --- WEAPON ----------- Heavy Particle Gun Powered Hammer > --- INVENTORY -------- Structural Scanner PSU Rigger [Rating: 25] Favorites ----------- Power Ion Engine Engine Ion Engine Propulsion Wheel Wheel Wheel Utility Structural Scanner Device Structural Scanner Hackware System Shield Protection Improved Propulsion Shielding Weapon Shotgun Energy Gun Heavy Particle Gun Ballistic Gun Shotgun Impact Weapon Powered Hammer Slashing Weapon Scythe Build | -11 -10 -9 -9 -9 -8 -8 ------- Run | Jun Mat Mat Min Exi Min Mat Slots Evolved 4 | 3 . . . . . 1 Power . | . . . . . . . Propulsion 1 | 1 . . . . . . Utility 2 | 2 . . . . . . Weapon 1 | . . . . . . 1 Parts Attached 32 | 2 2 3 1 2 1 21 Power 5 | . . . . . . 5 Engine 5 | . . . . . . 5 Core . | . . . . . . . Reactor . | . . . . . . . Propulsion 4 | 2 . . . . . 2 Treads . | . . . . . . . Leg . | . . . . . . . Wheel 4 | 2 . . . . . 2 Hover . | . . . . . . . Flight . | . . . . . . . Utility 17 | . 2 2 1 2 1 9 Device 12 | . 2 . 1 2 1 6 Storage . | . . . . . . . Processor . | . . . . . . . Hackware 1 | . . . . . . 1 Protection 4 | . . 2 . . . 2 Artifact . | . . . . . . . Weapon 6 | . . 1 . . . 5 Energy Gun 1 | . . . . . . 1 Energy Cannon . | . . . . . . . Ballistic Gun 2 | . . 1 . . . 1 Ballistic Cannon . | . . . . . . . Launcher . | . . . . . . . Special Weapon . | . . . . . . . Impact Weapon 1 | . . . . . . 1 Slashing Weapon 2 | . . . . . . 2 Piercing Weapon . | . . . . . . . Special Melee Weapon . | . . . . . . . Unidentified Prototypes 5 | . . . 1 2 . 2 Parts Lost 1 | . . . . . . 1 Power . | . . . . . . . Propulsion . | . . . . . . . Utility 1 | . . . . . . 1 Weapon . | . . . . . . . Highest Loss Streak 1 | . . . . . . 1 To Critical Strikes . | . . . . . . . Average Slot Usage (%) 97 | . 67 94 100 99 100 99 Engine 13 | . 14 14 14 14 14 12 Wheel 26 | . 28 28 28 28 28 25 Device 24 | . 10 28 28 27 28 22 Hackware 2 | . . . . . . 5 Protection 10 | . . 9 14 14 14 9 Ballistic Gun 10 | . 14 14 14 14 14 6 Impact Weapon 4 | . . . . . . 9 Slashing Weapon 2 | . . . . . . 4 Naked Turns . | . . . . . . . Heaviest Build 21 | 6 9 14 13 13 13 21 Greatest Support 26 | 26 26 26 26 26 26 26 Greatest Overweight (x) 2 | . . . . . . 2 Average Overweight (x) . | . . . . . . . Largest Inventory Capacity 2 | 1 1 1 1 1 2 2 Average Capacity 1 | . 1 1 1 1 1 2 Most Carried 2 | 1 1 1 1 1 1 2 Average Carried 1 | . 1 1 1 1 1 1 Final Capacity 2 | 1 1 1 1 1 2 2 Final Carried 2 | 1 1 1 1 1 1 2 Class Distribution -------------------- 34% | Hacker-Assassin 30% | Mutant 23% | Hacker-Mutant 10% | Infiltrator-Mutant Dominant Class ---------------- Mutant | -10/Materials Infiltrator-Mutant | -9/Materials Infiltrator-Mutant | -9/Mines Mutant | -9/Exiles Hacker-Mutant | -8/Mines Hacker-Assassin | -8/Materials Resources | -11 -10 -9 -9 -9 -8 -8 ----------- Run | Jun Mat Mat Min Exi Min Mat Matter Collected 572 | 200 . 80 . . . 292 Remotely . | . . . . . . . Salvage Created 1025 | . . 46 . . . 979 Parts 23 | . . 9 . . . 14 Haulers Intercepted . | . . . . . . . Recyclers Shooed . | . . . . . . . Parts Field Recycled . | . . . . . . . Retrieved Matter . | . . . . . . . Parts Self-Destructed . | . . . . . . . Prevented . | . . . . . . . Kills | -11 -10 -9 -9 -9 -8 -8 ------- Run | Jun Mat Mat Min Exi Min Mat Combat Hostiles Destroyed 18 | . . 4 . . . 14 Melee 5 | . . . . . . 5 Guns 4 | . . 4 . . . . Classes Destroyed 8 | . . 2 . . . 6 Worker 3 | . . . . . . 3 Recycler 1 | . . . . . . 1 Watcher 1 | . . . . . . 1 Swarmer 3 | . . 3 . . . . Grunt 9 | . . . . . . 9 Sentry 3 | . . 1 . . . 2 Specialist 2 | . . . . . . 2 Hunter 1 | . . . . . . 1 Best Kill Streak 7 | . . 4 . . . 7 Combat Bots Only 7 | . . 4 . . . 7 Max Kills in Single Turn 1 | . . 1 . . . 1 Gunslinging . | . . . . . . . Exploded . | . . . . . . . Melee 1 | . . . . . . 1 Uniques/NPCs Destroyed . | . . . . . . . Combat | -11 -10 -9 -9 -9 -8 -8 -------- Run | Jun Mat Mat Min Exi Min Mat Damage Taken 1366 | . . 208 . . 173 985 Core 1078 | . . 183 . . 145 750 Absorbed by Shields . | . . . . . . . Redirected to Core 615 | . . 61 . . 97 457 Redirected to Shielding 101 | . . 6 . . . 95 Core Remaining (%) 90 | 100 100 . . . 71 . Volleys Fired 13 | . . 13 . . . . Largest 1 | . . 1 . . . . Hottest 23 | . . 23 . . . . Shots Fired 13 | . . 13 . . . . Gun 13 | . . 13 . . . . Cannon . | . . . . . . . Launcher . | . . . . . . . Special . | . . . . . . . Kinetic 13 | . . 13 . . . . Thermal . | . . . . . . . Explosive . | . . . . . . . Electromagnetic . | . . . . . . . Robot Hit Streak 7 | . . 7 . . . . Robot Miss Streak 2 | . . 2 . . . . Penetration Max . | . . . . . . . Secondary Targets . | . . . . . . . Shots Hit Robots 49 | . . 11 . . . 38 Core Hits 13 | . . 6 . . . 7 Critical Kills 1 | . . 1 . . . . Critical Parts Destroyed 6 | . . . . . . 6 Critical Strikes 7 | . . 1 . . . 6 Destroy 1 | . . 1 . . . . Smash 6 | . . . . . . 6 Melee Attacks 49 | . . . . . . 49 Impact 47 | . . . . . . 47 Slashing 2 | . . . . . . 2 Piercing . | . . . . . . . Sneak Attacks 4 | . . . . . . 4 Combat Hostiles . | . . . . . . . Follow-up Attacks 2 | . . . . . . 2 Damage Inflicted 1754 | . . 150 . . . 1604 Guns 150 | . . 150 . . . . Cannons . | . . . . . . . Explosions . | . . . . . . . Melee 1604 | . . . . . . 1604 Ramming . | . . . . . . . Kinetic 150 | . . 150 . . . . Thermal . | . . . . . . . Explosive . | . . . . . . . Electromagnetic . | . . . . . . . Impact 1542 | . . . . . . 1542 Slashing 62 | . . . . . . 62 Piercing . | . . . . . . . Highest Corruption . | . . . . . . . Average Corruption . | . . . . . . . Corruption Purged . | . . . . . . . Corruption Blocked . | . . . . . . . Overload Shots . | . . . . . . . Overflow Damage 463 | . . . . . . 463 Projectiles . | . . . . . . . Explosions . | . . . . . . . Melee 463 | . . . . . . 463 Knockbacks 7 | . . . . . . 7 Impact 7 | . . . . . . 7 Kinetic . | . . . . . . . Secondary . | . . . . . . . Self-Inflicted Damage . | . . . . . . . Shots . | . . . . . . . Rammed . | . . . . . . . Targets Rammed . | . . . . . . . Kicked . | . . . . . . . Crushed . | . . . . . . . Highest Temperature 16 | . . . . . 16 9 Average Temperature 12 | . . . . . 16 9 Received Heat Transfer 489 | . . 57 . . 63 369 Siege Activations . | . . . . . . . Robots Corrupted . | . . . . . . . Combat Hostiles . | . . . . . . . Parts Fried 24 | . . . . . . 24 Impact Corruptions 19 | . . . . . . 19 Robots Melted . | . . . . . . . Combat Hostiles . | . . . . . . . Parts Melted . | . . . . . . . Heat Transferred . | . . . . . . . Parts Sabotaged . | . . . . . . . Parts Stolen . | . . . . . . . Parts Stripped . | . . . . . . . Power Chain Reactions . | . . . . . . . Missiles Intercepted . | . . . . . . . Alert | -11 -10 -9 -9 -9 -8 -8 ------- Run | Jun Mat Mat Min Exi Min Mat Peak Influence 399 | . . 156 60 . . 399 Initial 60 | . . . 60 . . . Average 76 | . . 103 60 . . 91 Maximum Alert Level 1 | . . . . . . 1 Low Security (%) 80 | 100 100 100 100 . 100 72 Level 1 19 | . . . . . . 27 Level 2 . | . . . . . . . Level 3 . | . . . . . . . Level 4 . | . . . . . . . Level 5 . | . . . . . . . High Security . | . . . . . . . Max Security . | . . . . . . . Squads Dispatched 4 | . . . . . . 4 Investigation 1 | . . . . . . 1 Extermination . | . . . . . . . Reinforcement 3 | . . . . . . 3 Assault . | . . . . . . . Garrison . | . . . . . . . Intercept . | . . . . . . . Searches Triggered . | . . . . . . . Construction Impeded . | . . . . . . . Haulers Reinforced . | . . . . . . . Active Scanning Responses . | . . . . . . . Cargo Convoy Interrupts . | . . . . . . . Stealth | -11 -10 -9 -9 -9 -8 -8 --------- Run | Jun Mat Mat Min Exi Min Mat Distress Signals 4 | . . . . . . 4 Communications Jammed . | . . . . . . . Distress Signals . | . . . . . . . Times Spotted 45 | . . 10 . . 3 32 Peak Tracking Total 6 | . . 4 . . 3 6 Tactical Retreats 8 | . . 2 . . . 6 Traps | -11 -10 -9 -9 -9 -8 -8 ------- Run | Jun Mat Mat Min Exi Min Mat Traps Triggered 1 | . . . . . . 1 Indirectly . | . . . . . . . Trap Hack Attempts . | . . . . . . . Triggered . | . . . . . . . Disarmed . | . . . . . . . Reprogrammed . | . . . . . . . Reused . | . . . . . . . Traps Extracted . | . . . . . . . Installed . | . . . . . . . Triggered . | . . . . . . . Power Sources Rigged 1 | . . . . . . 1 Machines | -11 -10 -9 -9 -9 -8 -8 ---------- Run | Jun Mat Mat Min Exi Min Mat Machines Disabled . | . . . . . . . Max in Single Turn . | . . . . . . . Machines Repaired . | . . . . . . . Machines Sabotaged . | . . . . . . . Overloaded Fab Kills . | . . . . . . . Hacking | -11 -10 -9 -9 -9 -8 -8 --------- Run | Jun Mat Mat Min Exi Min Mat Machines Accessed 6 | . 1 1 . . . 4 Terminals 4 | . . 1 . . . 3 Fabricators . | . . . . . . . Repair Stations 1 | . 1 . . . . . Recycling Units . | . . . . . . . Scanalyzers 1 | . . . . . . 1 Garrison Access . | . . . . . . . Total Hacks 28 | . 3 7 . . . 18 Successful 16 | . 1 3 . . . 12 Failed 12 | . 2 4 . . . 6 Catastrophic 1 | . . . . . . 1 Database Lockouts . | . . . . . . . Manual 13 | . 3 4 . 1 . 5 Terminals 19 | . . 7 . . . 12 Fabricators . | . . . . . . . Repair Stations 3 | . 3 . . . . . Recycling Units . | . . . . . . . Scanalyzers 6 | . . . . . . 6 Garrison Access . | . . . . . . . Terminal Hacks 4 | . . 1 . . . 3 Branch Access Points 1 | . . 1 . . . . Unreport Threat 3 | . . . . . . 3 Fabricator Hacks . | . . . . . . . Repair Station Hacks . | . . . . . . . Recycling Unit Hacks . | . . . . . . . Scanalyzer 6 | . . . . . . 6 Insert Component 3 | . . . . . . 3 Analyze 3 | . . . . . . 3 Garrison Access Hacks . | . . . . . . . Unauthorized Hacks 6 | . 1 2 . . . 3 Terminals 5 | . . 2 . . . 3 Assimilate 1 | . . . . . . 1 Botnet 3 | . . 1 . . . 2 Operators 1 | . . 1 . . . . Fabricators . | . . . . . . . Repair Stations 1 | . 1 . . . . . Mechanics 1 | . 1 . . . . . Recycling Units . | . . . . . . . Scanalyzers . | . . . . . . . Garrison Access . | . . . . . . . Data Cores Recovered . | . . . . . . . Used . | . . . . . . . Hacking Detections 4 | . . 1 . . . 3 Full Trace Events . | . . . . . . . Feedback Events . | . . . . . . . Feedback Blocked . | . . . . . . . Robot Schematics Acquired . | . . . . . . . Robots Built . | . . . . . . . Authchips . | . . . . . . . Time . | . . . . . . . Total Robot Build Rating . | . . . . . . . Part Schematics Acquired 3 | . . . . . . 3 Parts Built . | . . . . . . . Authchips . | . . . . . . . Time . | . . . . . . . Total Part Build Rating . | . . . . . . . Parts Repaired . | . . . . . . . Time . | . . . . . . . Parts Recycled . | . . . . . . . Recycled Matter . | . . . . . . . Retrieved Matter . | . . . . . . . Retrieved Components . | . . . . . . . Parts Scanalyzed 3 | . . . . . . 3 Part Schematics Acquired 3 | . . . . . . 3 Parts Damaged . | . . . . . . . Bothacking | -11 -10 -9 -9 -9 -8 -8 ------------ Run | Jun Mat Mat Min Exi Min Mat Used RIF Installer . | . . . . . . . Robots Hacked . | . . . . . . . Non-combat . | . . . . . . . Combat . | . . . . . . . Robot Hacks Applied . | . . . . . . . Relay Couplers Released . | . . . . . . . Fabnet Peak Effective % . | . . . . . . . Robots Rewired . | . . . . . . . Allies Hacked . | . . . . . . . Hacks Repelled . | . . . . . . . Allies | -11 -10 -9 -9 -9 -8 -8 -------- Run | Jun Mat Mat Min Exi Min Mat Total Allies . | . . . . . . . Largest Group . | . . . . . . . Highest-Rated Group . | . . . . . . . Highest-Rated Ally . | . . . . . . . Total Orders . | . . . . . . . Ally Attacks . | . . . . . . . Total Damage . | . . . . . . . Kills . | . . . . . . . Allies Corrupted . | . . . . . . . Allies Melted . | . . . . . . . Intel | -11 -10 -9 -9 -9 -8 -8 ------- Run | Jun Mat Mat Min Exi Min Mat Robot Analysis Total . | . . . . . . . Derelict Logs Recovered . | . . . . . . . Drone Launches . | . . . . . . . Drone Recoveries . | . . . . . . . Exploration | -11 -10 -9 -9 -9 -8 -8 ------------- Run | Jun Mat Mat Min Exi Min Mat Turns Passed 2160 | 14 76 172 64 563 168 1103 Spaces Moved 1664 | 10 82 145 69 622 47 689 Core 1 | . . . . . . 1 Treads . | . . . . . . . Legs . | . . . . . . . Wheels 1663 | 10 82 145 69 622 47 688 Hover . | . . . . . . . Flight . | . . . . . . . Fastest Speed 80 | 80 90 90 90 90 90 80 Average Speed 90 | 87 90 90 90 90 90 90 Slowest Speed 150 | 90 90 90 90 90 90 150 Overloaded Moves . | . . . . . . . Propulsion Burnouts . | . . . . . . . Robots Hopped . | . . . . . . . Cave-ins Triggered . | . . . . . . . Exploration Rate (%) 28 | 2 21 16 16 91 8 42 Regions Visited 6 Branch Regions 3 Pre-discovered Areas . | . . . . . . . Known Exits Taken 1 | . . 1 . . . . Unknown Exits Taken 5 | 1 1 . 1 1 1 . Scrap Searched . | . . . . . . . Spaces Dug 10 | . . . . . . 10 Terrain Destroyed 10 | . . . . . . 10 Melee 10 | . . . . . . 10 Projectile . | . . . . . . . AOE . | . . . . . . . Terrain Rammed . | . . . . . . . Walls Destroyed . | . . . . . . . Machines Disabled . | . . . . . . . Actions | -11 -10 -9 -9 -9 -8 -8 --------- Run | Jun Mat Mat Min Exi Min Mat Total 2228 | 15 83 173 71 625 172 1089 Wait 427 | . . 5 . . 125 297 Move 1658 | 9 81 144 68 621 46 689 Hop . | . . . . . . . Pick Up 13 | 2 . . . . . 11 Fast Attach 14 | 2 2 2 1 2 . 5 Attach 3 | . . . . . . 3 Detach 3 | . . . 1 . . 2 Swap 15 | . . 1 . . 1 13 Drop 19 | 2 . 2 1 2 . 12 Fire 13 | . . 13 . . . . Melee 47 | . . . . . . 47 Ram . | . . . . . . . Kick . | . . . . . . . Crush . | . . . . . . . Escape Stasis . | . . . . . . . Rewire . | . . . . . . . Trap 1 | . . . . . . 1 Miscellaneous 15 | . . 6 . . . 9 Route ------- -11/Junkyard -10/Materials -9/Materials (discovered 2 exits: *Min x2) -9/Mines -9/Exiles -8/Mines -8/Materials History --------- Turn | Location | Event 3 | -11/Junkyard | Discovered new exit (range 1) 5 | -11/Junkyard | Upgraded with Propulsion slot (x1) 5 | -11/Junkyard | Upgraded with Utility slot (x2) 15 | -11/Junkyard | Entered Materials 74 | -10/Materials | Discovered new exit (range 9) 91 | -10/Materials | Entered another Materials area 93 | -9/Materials | Reached level 2 176 | -9/Materials | Identified exit to Mines 263 | -9/Materials | Entered Mines 278 | -9/Mines | Assembled infested the area 294 | -9/Mines | Found a damaged Exp. Sensor Array with a note attached 297 | -9/Mines | Found Prototype Device 297 | -9/Mines | Identified Exp. Sensor Array 324 | -9/Mines | Discovered new exit (range 5) 327 | -9/Mines | Entered Exiles 349 | -9/Exiles | Met 8R-AWN 364 | -9/Exiles | Met EX-HEX 398 | -9/Exiles | Met EX-DEC 430 | -9/Exiles | Visited The Gauntlet 565 | -9/Exiles | Discovered new exit (range 14) 603 | -9/Exiles | Build established: Mutant 614 | -9/Exiles | Met EX-BIN 760 | -9/Exiles | Aligned with FarCom system 761 | -9/Exiles | Given EX-Vault access code 782 | -9/Exiles | Opened EX-Vault 788 | -9/Exiles | Found Prototype Device 788 | -9/Exiles | Identified Supersonic Drone Bay 794 | -9/Exiles | Found Prototype Device 794 | -9/Exiles | Identified PSU Rigger 815 | -9/Exiles | Warned to stay clear of 0b10 Research branches 890 | -9/Exiles | Left Exiles lab with PSU Rigger 890 | -9/Exiles | Entered Mines 892 | -8/Mines | Reached level 3 1045 | -8/Mines | Discovered new exit (range 15) 1058 | -8/Mines | Entered Materials 1060 | -8/Materials | Reached level 4 1196 | -8/Materials | Build established: Hacker-Mutant 1298 | -8/Materials | Upgraded with Weapon slot (x1) 1519 | -8/Materials | Core integrity fell below 50% 1574 | -8/Materials | Destroyed 7 combat bots 1593 | -8/Materials | Build established: Hacker-Assassin 1729 | -8/Materials | Reached level 5 1750 | -8/Materials | Core integrity fell below 20% 2161 | -8/Materials | Destroyed by L-31 Rogue with Katana Last Messages --------------- 02124_ W-25 Informer sends out distress signal. 02139_ G-47 Trooper suffers critical hit (Smash). 02139_ Destroyed Aluminum Leg. 02139_ Destroyed Lgt. Nuclear Core. 02139_ G-47 Trooper system corrupted by crushing effect. 02140_ G-47 Trooper system terminally corrupted. 02143_ Scythe follow-up attack on G-47 Trooper. 02143_ G-47 Trooper destroyed. 02147_ K-01 Serf collects debris. 02148_ Sneak attack on K-01 Serf. 02148_ K-01 Serf destroyed. 02151_ W-25 Informer sends out distress signal. 02153_ Dropped Seismic Detector. 02153_ Acquired Protomatter-32. 02154_ R-06 Scavenger collects Wheel. 02157_ Scythe follow-up attack on G-47 Trooper. 02157_ G-47 Trooper destroyed. 02158_ K-01 Serf collects debris. 02159_ Lgt. Angular Momentum Engine severed. 02159_ K-01 Serf collects debris. Map ----- +----------------------------------------------------+ | # ?????????????## [ ##% ######## ? | | # ?????????????## """ ## ! # ? | | # ?????????????## """ ## % ### # ? | | ???????????????## """ ## %% ! + ? | | ???????????????## ## # ? | | ???????????????##[ """ =######### """ # ? | | ??????????????? + """ ######### """"" # ? | | ???????????????## """ ##?????## """"" # | | ???????????????## ##?????## """"" ### | | ???????????????########+###?????## """ | | ???????????????######## ###?????## | | ????################### ########## | | ??? ##################+########## """ #### | | ?? # ! ## # """"" #### | | ?? # ## """ #%% """"" #### | | ?? # ## "Y"%h%% """"" #### | | ?????#####+##### #""" ## %#% """ #### | | ?????##[ # #""" ## #% #### | | ?????## "" # #""" ## ] |#! #### | | ???? ## ""S [ # #%%% ##############"T"######## | | ???? ## "" ! # ww##+#################"""######## | | ???? # ! # %%% #########????#######?????? | | ???? ## * # ####k#########????#######?????? | | ???? ###+########/#####g#=% ##????????????????? | | ?????### #### "" #kl%% ##????????????????? | | ??????## #### """ ""S #Y#@= ##????????????????? | | ??????## + """ "" + #* ]]]##????????????????? | | ??????####### """ # # ]] ##????????????????? | | ??????####### # # ! ]] ##????????????????? | | ???????????## # #########????????????????? | | ???????????## # #########????????????????? | | ???????????## # ##???????????????????????? | | ???????????############ ##???????????????????????? | | ???????????############ ##???????????????????????? | | ?????????????????????## ##???????????????????????? | | ??????????????????????? ?????????????????????????? | | ??????????????????????? ?????????????????????????? | | ??????????????????????? ?????????????????????????? | | ??????????????????????? ?????????????????????????? | | ??????????????????????? ?????????????????????????? | | ??????????????????????? ?????????????????????????? | | ??????????????????????? ?????????????????????????? | | ?????????????????????????????????????????????????? | | ?????????????????????????????????????????????????? | | ?????????????????????????????????????????????????? | | ?????????????????????????????????????????????????? | | ?????????????????????????????????????????????????? | | ?????????????????????????????????????????????????? | | ?????????????????????????????????????????????????? | | ?????????????????????????????????????????????????? | +----------------------------------------------------+ Best States ------------- Heat Dissipation 25 Energy Generation 18 Energy Capacity 280 Matter Stores 300 Matter Capacity 300 Sight Range 18 Robot Scan Range 20 Terrain Scan Density 10 ECM Strength 2 Armor Coverage 150 Resistance: KI 15 Resistance: TH 15 Propulsion Shielding 66 Weapon Shielding 66 Evasion (%) 44 Offensive Hacking 15 Defensive Hacking 20 Item Schematics ----------------- System Shield | -8/Materials | Scanalyzed Adv. ECM Suite | -8/Materials | Scanalyzed Structural Scanner | -8/Materials | Scanalyzed Robot Schematics ------------------ None Fabricated ------------ Nothing Alien Tech Used ----------------- None Achievements -------------- None Challenges ------------ None RPGLIKE | -11 -10 -9 -9 -9 -8 -8 --------- Run | Jun Mat Mat Min Exi Min Mat Levels Raised 4 | . . 1 . . 1 2 XP Earned 9715 | 3000 100 2030 500 350 500 3235 XP Spent 8955 | 2550 . 1560 . . 1800 3045 Upgrades 26 | 7 . 7 . . 4 8 Propulsion Slot 1 | 1 . . . . . . Utility Slot 2 | 2 . . . . . . Weapon Slot 1 | . . . . . . 1 Core Integrity 3 | . . 2 . . . 1 Inventory Capacity 2 | 1 . . . . 1 . Sight Range 2 | . . 1 . . 1 . Melee Accuracy 4 | . . . . . . 4 Hack Attack % 3 | . . 1 . . 2 . Hack Defense % 2 | 1 . 1 . . . . KI Resistance % 3 | 1 . 1 . . . 1 TH Resistance % 3 | 1 . 1 . . . 1 Protomatter Created 138 | . . 43 . . . 95 Integrity Restored 318 | . . 129 . . . 189 Core 318 | . . 129 . . . 189 Protomatter Decayed 24 | . . . 24 . . . Game ------ Seed BarrageReflectiveMatrix Manual? 0 Play Time 00:30:22 Cumulative 125.0 hours Start 2023.03.12 @ 01:08:08 End 2023.03.12 @ 01:35:15 Sessions 1 Manual Loads 0 Difficulty Rogue Special Mode Winter2019/RPGLIKE Game No. 193 Rogue 193 Adventurer 0 Explorer 0 Win Type - Total 2 Types 1/0/1/0/0/0/0/0/0 Lore% 50 Gallery% 59 Achievement% 50 Wizard Run 0 Options --------- ASCII 0 Keyboard 0 Movement Mouse Keybinds 0 Fullscreen 2 Font 24/Proggy Map View 113x50 Tactical HUD 1 Map Filters NONE Filters NONE Steam 1 RUN: 4972f95a-ed17-4cb0-8ab4-04bf684ff6b5